bitfinex-derivatives/quotes_SOLF0:USTF0_20250501
["timestamp","ask_amount","ask_price","bid_price","bid_amount"]
[1746102748601,5.146e-05,151.49,151.48,6.6001]
[1746102749006,24.7,151.58,151.45,37.2471504]
[1746102749211,6.5977,151.55,151.52,6.5984]
[1746102749506,6.5977,151.55,151.5,24.7]
[1746102749907,6.5977,151.55,151.52,6.5986]
[1746102750107,6.5972,151.56,151.5,24.7]
[1746102750309,3.902,151.59,151.5,24.7]
[1746102750608,3.902,151.59,151.53,6.598]
[1746102751097,6.597,151.57,151.53,6.598]
[1746102751301,3.902,151.59,151.53,6.598]
[1746102752109,6.5973,151.56,151.53,6.598]
[1746102752313,3.902,151.59,151.54,6.5978]
[1746102752608,3.902,151.59,151.5,24.7]
[1746102752908,3.902,151.59,151.52,6.5985]
[1746102753109,6.5977,151.55,151.52,6.5985]
[1746102754217,6.5972,151.56,151.52,6.5985]
[1746102754406,3.902,151.59,151.5,24.7]
[1746102755606,6.597,151.56,151.5,24.7]
[1746102755809,6.597,151.56,151.53,6.598]
[1746102756013,3.902,151.59,151.5,24.7]
[1746102756916,6.5977,151.55,151.52,6.5985]
[1746102757212,3.902,151.59,151.5,24.7]
[1746102757907,24.7,151.64,151.52,12.5471504]
[1746102758112,6.5948,151.62,151.58,6.5958]
[1746102758711,6.5948,151.62,151.59,6.5957]
[1746102758921,6.5948,151.62,151.57,24.7]
[1746102759210,6.5948,151.62,151.59,6.5955]
[1746102759614,9.18089113,151.63,151.57,24.7]
[1746102759906,9.18089113,151.63,151.6,6.595]
[1746102761707,6.5944,151.62,151.59,6.5956]
[1746102763516,6.5948,151.61,151.58,6.5959]
[1746102764121,2.58679113,151.63,151.57,24.7]
[1746102764720,2.58679113,151.63,151.61,6.5945]
[1746102766720,6.5937,151.64,151.61,6.5945]
[1746102766914,6.5933,151.65,151.62,6.594]
[1746102767720,6.5935,151.64,151.61,31.2746]
[1746102768118,4.0191,151.67,151.61,24.68]
[1746102769018,6.5935,151.64,151.61,31.2748]
[1746102770420,6.5933,151.65,151.62,6.5943]
[1746102770637,4.0191,151.67,151.61,24.68]
[1746102771119,6.5938,151.64,151.61,31.2747]
[1746102771825,6.594,151.63,151.61,31.2747]
[1746102772321,6.594,151.63,151.61,24.68]
[1746102773429,6.5937,151.64,151.61,31.2748]
[1746102774122,6.5937,151.64,151.62,6.5944]
[1746102774426,6.5933,151.65,151.62,6.5944]
[1746102774628,4.0191,151.67,151.62,6.5944]
[1746102774827,6.5935,151.64,151.61,31.2746]
[1746102775329,6.5933,151.65,151.62,6.5942]
[1746102775625,6.5933,151.65,151.61,24.68]
[1746102775826,6.5933,151.65,151.62,6.5943]
[1746102777023,6.5933,151.65,151.61,31.2746]
[1746102778132,6.5933,151.65,151.62,6.5943]
[1746102779825,4.0191,151.67,151.61,24.68]
[1746102780030,6.5928,151.66,151.63,6.5938]
[1746102780632,6.5932,151.65,151.63,6.5938]
[1746102781029,6.5932,151.65,151.62,6.5942]
[1746102781225,6.5932,151.65,151.61,24.68]
[1746102781425,4.0191,151.67,151.61,24.68]
[1746102781626,4.0191,151.67,151.64,6.5933]
[1746102782135,10.6117,151.67,151.64,6.5933]
[1746102782336,4.0191,151.67,151.64,6.5933]
[1746102782934,4.0191,151.67,151.61,24.68]
[1746102782935,4.0191,151.67,151.63,6.5939]
[1746102783129,4.0191,151.67,151.61,24.68]
[1746102783428,6.5932,151.65,151.61,24.68]
[1746102783833,6.5932,151.65,151.63,6.5937]
[1746102786331,6.5932,151.65,151.62,6.5942]
[1746102786535,6.5932,151.65,151.61,24.68]
[1746102786835,6.5932,151.65,151.62,6.5943]
[1746102787036,6.5929,151.66,151.61,24.68]
[1746102787835,6.5929,151.66,151.63,6.5937]
[1746102788636,6.5932,151.65,151.63,6.5937]
[1746102789438,6.5935,151.64,151.62,6.5943]
[1746102789638,6.5935,151.64,151.61,24.68]
[1746102789938,6.5935,151.64,151.61,31.2746]
[1746102791442,7.8285495,151.69,151.61,24.68]
[1746102791443,7.8285495,151.66,151.61,24.68]
[1746102791738,3.9236,151.65,151.58,24.34]
[1746102792339,6.5951,151.61,151.58,30.9359]
[1746102793844,6.5946,151.62,151.59,6.5957]
[1746102795048,6.5946,151.62,151.58,24.34]
[1746102795049,6.595,151.61,151.58,30.936]
[1746102795545,3.9236,151.65,151.58,24.34]
[1746102795738,6.5952,151.61,151.58,24.34]
[1746102796136,6.5952,151.61,151.58,30.9361]
[1746102797437,3.9236,151.65,151.58,24.34]
[1746102798034,6.5951,151.61,151.58,30.9361]
[1746102798940,3.9236,151.65,151.58,24.34]
[1746102799445,6.5957,151.59,151.58,24.34]
[1746102800241,6.5955,151.6,151.58,24.34]
[1746102800449,3.9236,151.65,151.58,24.34]
[1746102800744,6.5957,151.6,151.58,24.34]
[1746102800948,3.9236,151.65,151.58,24.34]
[1746102801347,6.5956,151.6,151.58,24.34]
[1746102803247,6.5957,151.59,151.58,24.34]
[1746102806549,7.8285495,151.63,151.55,24.18]
[1746102806940,6.5965,151.58,151.55,24.18]
[1746102807347,7.8285495,151.63,151.56,6.5969]
[1746102807549,6.5959,151.59,151.55,24.18]
[1746102808148,6.5962,151.58,151.55,24.18]
[1746102808350,7.8285495,151.63,151.55,24.18]
[1746102808763,6.596,151.59,151.56,6.5969]
[1746102810460,6.5962,151.58,151.56,6.5969]
[1746102810660,6.5962,151.58,151.55,30.7772]
[1746102812156,6.5962,151.58,151.56,6.597]
[1746102812561,6.5962,151.58,151.55,24.18]
[1746102812764,6.5966,151.57,151.55,30.7773]
[1746102813459,6.597,151.56,151.55,24.18]
[1746102814466,6.5968,151.57,151.55,24.18]
[1746102815059,6.5964,151.58,151.55,24.18]
[1746102815462,7.8285495,151.63,151.55,24.18]
[1746102815763,7.8285495,151.63,151.56,6.5969]
[1746102816465,6.5955,151.6,151.57,6.5965]
[1746102816661,7.8285495,151.63,151.55,24.18]
[1746102816968,28.1036,151.65,151.58,6.5958]
[1746102817167,28.1036,151.65,151.55,24.18]
[1746102817365,6.5951,151.61,151.58,6.5959]
[1746102820366,6.5946,151.62,151.59,6.5957]
[1746102821162,6.5946,151.62,151.6,6.5951]
[1746102821569,28.1036,151.65,151.56,7.8285495]
[1746102821763,28.1036,151.65,151.55,24.18]
[1746102821966,6.5943,151.63,151.55,32.0085495]
[1746102822159,3.9236,151.65,151.55,32.0085495]
[1746102822356,3.9236,151.65,151.6,6.595]
[1746102822564,3.9236,151.65,151.59,24.18]
[1746102822768,24.18,151.68,151.6,24.18]
[1746102823166,6.593,151.66,151.62,6.5941]
[1746102824264,6.593,151.66,151.63,6.5938]
[1746102824674,24.18,151.72,151.6,24.18]
[1746102824874,1.21148419,151.71,151.63,6.5937]
[1746102825069,1.21148419,151.71,151.64,24.18]
[1746102825366,1.21148419,151.71,151.61,24.18]
[1746102825571,7.8285495,151.7,151.61,24.18]
[1746102826267,7.8285495,151.7,151.6,24.18]
[1746102826574,6.5943,151.63,151.6,30.7752]
[1746102828166,6.5937,151.64,151.61,6.5946]
[1746102828873,1.9132,151.69,151.6,24.18]
[1746102829276,1.9132,151.69,151.64,6.5935]
[1746102829777,6.5924,151.67,151.65,6.593]
[1746102831076,6.5924,151.67,151.6,24.18]
[1746102831077,6.5919,151.68,151.66,6.5926]
[1746102831265,24.18,151.71,151.66,6.5926]
[1746102831775,24.18,151.71,151.65,6.593]
[1746102832274,6.5924,151.67,151.65,6.593]
[1746102833476,26.205,151.71,151.64,24.16]
[1746102834174,7.8285495,151.7,151.64,24.16]
[1746102834378,6.5936,151.64,151.62,6.5942]
[1746102834978,6.5941,151.63,151.61,32.8013]
[1746102835177,7.8285495,151.7,151.61,30.7546]
[1746102835976,6.5937,151.64,151.62,6.5944]
[1746102838180,7.8285495,151.7,151.61,24.16]
[1746102839187,6.5942,151.63,151.61,24.16]
[1746102839481,7.8285495,151.7,151.61,24.16]
[1746102839682,1.21157888,151.69,151.61,30.7548]
[1746102839980,7.8285495,151.7,151.61,30.7548]
[1746102840177,7.8285495,151.7,151.61,24.16]
[1746102840382,1.21157902,151.69,151.61,24.16]
[1746102841473,7.8285495,151.7,151.61,30.7548]
[1746102841972,7.8285495,151.7,151.61,24.16]
[1746102842373,13.183,151.69,151.61,24.16]
[1746102843186,13.183,151.69,151.61,30.7546]
[1746102843486,1.21170724,151.68,151.61,30.7546]
[1746102843788,6.5939,151.64,151.61,30.7546]
[1746102844088,6.5944,151.62,151.61,24.16]
[1746102847999,3.9951,151.66,151.61,24.16]
[1746102848691,6.5942,151.63,151.61,24.16]
[1746102848892,3.9951,151.66,151.61,24.16]
[1746102849096,6.5944,151.62,151.61,24.16]
[1746102850288,3.9951,151.66,151.57,1.9118]
[1746102850494,6.5956,151.6,151.58,24.16]
[1746102851383,6.5956,151.6,151.58,30.7561]
[1746102851795,6.5956,151.6,151.58,24.16]
[1746102855193,6.595,151.61,151.58,30.7559]
[1746102856191,5.9168,151.66,151.58,30.7559]
[1746102856697,6.5952,151.61,151.58,30.7559]
[1746102857491,6.5953,151.6,151.58,24.16]
[1746102859098,6.5953,151.6,151.58,30.7561]
[1746102859299,6.595,151.61,151.58,30.7561]
[1746102860001,6.5954,151.6,151.58,30.7561]
[1746102861603,6.5954,151.6,151.58,24.16]
[1746102861800,6.5957,151.59,151.58,24.16]
[1746102864093,6.5937,151.64,151.58,24.16]
[1746102864303,19.1029,151.66,151.58,24.16]
[1746102864698,5.9168,151.66,151.59,6.5957]
[1746102864904,5.9168,151.66,151.58,24.16]
[1746102865203,6.5943,151.63,151.6,6.595]
[1746102866307,5.9168,151.66,151.59,6.5956]
[1746102867207,6.5951,151.61,151.59,6.5956]
[1746102868003,6.5946,151.62,151.59,6.5956]
[1746102868204,5.9168,151.66,151.59,6.5956]
[1746102868404,5.9168,151.66,151.58,24.16]
[1746102868805,5.9168,151.66,151.59,6.5955]
[1746102869007,6.5946,151.62,151.59,6.5955]
[1746102869202,6.5946,151.62,151.58,24.16]
[1746102869403,6.5946,151.62,151.59,6.5956]
[1746102871202,6.5949,151.61,151.58,30.756]
[1746102871401,5.9168,151.66,151.58,24.16]
[1746102871912,5.9168,151.66,151.58,30.756]
[1746102873015,6.5953,151.6,151.58,30.756]
[1746102874014,6.595,151.61,151.58,30.756]
[1746102877321,6.5953,151.6,151.58,30.756]
[1746102877511,6.5953,151.6,151.58,24.16]
[1746102878225,6.5953,151.6,151.58,30.7561]
[1746102878416,5.9168,151.66,151.58,24.16]
[1746102879029,6.5955,151.6,151.58,24.16]
[1746102880217,6.5955,151.6,151.58,30.7561]
[1746102880418,13.1865,151.65,151.55,23.94]
[1746102880619,5.9168,151.66,151.55,23.94]
[1746102880818,7.8285495,151.64,151.55,23.94]
[1746102881030,6.5963,151.58,151.55,30.5372]
[1746102881335,13.1874,151.64,151.55,23.94]
[1746102881828,23.94,151.63,151.55,23.94]
[1746102882027,23.94,151.63,151.55,30.5372]
[1746102882330,23.94,151.63,151.55,23.94]
[1746102882718,6.5963,151.58,151.55,30.5371]
[1746102882922,6.5963,151.58,151.55,23.94]
[1746102883227,6.5959,151.59,151.56,6.5968]
[1746102884036,5.9168,151.66,151.55,23.94]
[1746102884234,5.9168,151.66,151.56,9.9094495]
[1746102884629,6.5941,151.63,151.59,6.5954]
[1746102884827,6.5941,151.63,151.59,23.94]
[1746102885632,6.5941,151.63,151.59,30.5357]
[1746102886332,6.5944,151.62,151.59,30.5357]
[1746102888233,6.5951,151.61,151.59,23.94]
[1746102889829,6.5945,151.62,151.59,30.5356]
[1746102890035,5.9168,151.66,151.59,23.94]
[1746102890936,6.5953,151.6,151.59,23.94]
[1746102891336,23.94,151.64,151.56,8.6777]
[1746102891528,23.94,151.64,151.56,26.0209]
[1746102892033,6.5955,151.6,151.57,6.5963]
[1746102892537,6.5955,151.6,151.58,6.5961]
[1746102893139,23.94,151.64,151.56,26.0209]
[1746102893638,6.5948,151.61,151.59,6.5954]
[1746102894036,23.94,151.64,151.56,26.0209]
[1746102894334,6.5955,151.6,151.57,6.5963]
[1746102894541,6.5955,151.6,151.56,26.0209]
[1746102894839,6.5957,151.59,151.57,6.5965]
[1746102895040,23.94,151.64,151.57,6.5965]
[1746102895339,6.5957,151.6,151.57,6.5965]
[1746102895640,23.94,151.64,151.57,6.5965]
[1746102896041,6.5956,151.6,151.57,6.5965]
[1746102899243,6.5957,151.59,151.56,26.0209]
[1746102900342,6.5962,151.58,151.56,26.0209]
[1746102900545,44.9559495,151.64,151.56,23.94]
[1746102901243,6.5964,151.58,151.56,23.94]
[1746102901444,44.9559495,151.64,151.56,23.94]
[1746102901842,6.5966,151.57,151.56,23.94]
[1746102903342,6.5963,151.58,151.56,23.94]
[1746102904747,6.5966,151.57,151.56,23.94]
[1746102905245,6.596,151.59,151.56,23.94]
[1746102905448,44.9559495,151.64,151.56,23.94]
[1746102905648,44.9559495,151.64,151.56,30.537]
[1746102905948,6.596,151.59,151.56,23.94]
[1746102906147,31.7685495,151.64,151.57,6.5962]
[1746102906351,6.5955,151.6,151.56,23.94]
[1746102906541,23.94,151.64,151.58,6.5958]
[1746102906749,6.5952,151.61,151.58,6.5958]
[1746102906949,23.94,151.64,151.58,6.5958]
[1746102907552,6.5955,151.6,151.58,6.5958]
[1746102908847,23.94,151.64,151.56,23.94]
[1746102909254,6.5957,151.6,151.57,6.5965]
[1746102909454,23.94,151.64,151.57,6.5965]
[1746102909860,6.5957,151.6,151.57,6.5965]
[1746102910355,6.5958,151.59,151.57,6.5965]
[1746102910951,23.94,151.64,151.56,30.5368]
[1746102911153,7.8285495,151.62,151.53,23.94]
[1746102911356,6.1282,151.61,151.53,23.94]
[1746102911557,6.5972,151.56,151.54,6.5977]
[1746102911856,6.5972,151.56,151.53,23.94]
[1746102912259,23.94,151.6,151.53,23.94]
[1746102912957,6.5979,151.54,151.53,23.94]
[1746102913167,7.8285495,151.59,151.5,32.62656]
[1746102913459,6.5982,151.54,151.51,6.5988]
[1746102914155,7.8285495,151.59,151.5,32.62656]
[1746102914156,6.5975,151.55,151.52,6.5986]
[1746102914953,6.5972,151.56,151.53,6.5983]
[1746102915266,6.5972,151.56,151.5,32.62656]
[1746102915558,6.5968,151.57,151.5,32.62656]
[1746102916257,6.5968,151.57,151.54,6.5977]
[1746102917357,175.00524082,151.75,151.56,7.8285495]
[1746102917656,30.9425511,151.7,151.59,7.8285495]
[1746102917860,7.73563777,151.71,151.65,6.593]
[1746102918359,6.5917,151.69,151.65,6.593]
[1746102918562,7.73563777,151.71,151.65,6.593]
[1746102918860,7.73563777,151.71,151.64,6.5935]
[1746102919058,31.67563777,151.71,151.64,6.5935]
[1746102919359,7.8285495,151.7,151.63,30.5338]
[1746102919753,6.5925,151.67,151.63,30.5338]
[1746102919953,31.67563777,151.71,151.63,23.94]
[1746102920153,7.73563777,151.71,151.65,7.8285495]
[1746102920562,7.73563777,151.71,151.7,6.5909]
[1746102921361,14.19562157,151.72,151.71,6.5905]
[1746102921660,14.19562157,151.81,151.68,32.2085495]
[1746102921855,14.19562157,151.81,151.74,6.5889]
[1746102922162,6.588,151.77,151.74,6.5889]
[1746102922554,6.588,151.77,151.73,24.38]
[1746102922963,6.588,151.77,151.73,30.9696]
[1746102923764,6.5884,151.76,151.73,24.38]
[1746102923950,14.19562157,151.81,151.73,24.38]
[1746102925260,6.5884,151.76,151.73,30.9696]
[1746102929963,6.5881,151.77,151.74,6.5892]
[1746102930457,6.5873,151.79,151.73,24.38]
[1746102930655,26.4831,151.83,151.73,24.38]
[1746102930854,1.21061339,151.82,151.73,24.38]
[1746102931162,6.5868,151.8,151.76,6.588]
[1746102931664,6.587,151.79,151.76,6.588]
[1746102932775,6.5875,151.78,151.76,6.588]
[1746102933064,6.5875,151.78,151.75,6.5886]
[1746102933257,6.5879,151.77,151.73,24.38]
[1746102933766,6.5879,151.77,151.74,6.5889]
[1746102934065,6.5876,151.78,151.73,24.38]
[1746102934363,26.4831,151.83,151.73,24.38]
[1746102934564,1.21059275,151.82,151.73,24.38]
[1746102935765,6.5878,151.78,151.75,6.5887]
[1746102937560,24.36,151.86,151.74,7.8285495]
[1746102937766,1.21042964,151.85,151.74,7.8285495]
[1746102938158,6.5864,151.81,151.78,6.5871]
[1746102938362,6.5864,151.81,151.79,24.36]
[1746102939165,6.5866,151.8,151.79,24.36]
[1746102943270,9.8514495,151.87,151.79,24.36]
[1746102943471,1.21026239,151.86,151.79,24.36]
[1746102943774,6.5838,151.87,151.85,6.5843]
[1746102944164,6.5833,151.88,151.86,6.584]
[1746102944566,6.5833,151.88,151.84,24.36]
[1746102944765,6.5838,151.87,151.84,30.9446]
[1746102944966,7.8285495,151.91,151.84,24.36]
[1746102945273,3.9036,151.92,151.84,24.36]
[1746102945464,1.20972021,151.91,151.84,24.36]
[1746102945764,3.9036,151.92,151.84,24.36]
[1746102945967,6.5827,151.89,151.86,6.5837]
[1746102947271,6.5831,151.88,151.86,6.5837]
[1746102947566,2.0177,151.95,151.84,36.84024178]
[1746102947774,1.20949455,151.94,151.84,36.84024178]
[1746102948070,3.9507,151.97,151.84,36.84024178]
[1746102948271,1.20938305,151.96,151.87,12.48024178]
[1746102948471,1.20938305,151.96,151.88,24.36]
[1746102948771,2.0177,152.01,151.9,12.48024178]
[1746102948965,2.0014,152.02,151.9,12.48024178]
[1746102949166,1.20887832,152.01,151.9,12.48024178]
[1746102949777,6.5791,151.98,151.9,12.48024178]
[1746102950167,2.0014,152.02,151.93,6.5806]
[1746102950369,1.20887161,152.01,151.94,24.36]
[1746102950766,2.0014,152.02,151.94,24.36]
[1746102951570,6.5796,151.97,151.94,24.36]
[1746102951874,2.0014,152.02,151.94,24.36]
[1746102952472,1.20886607,152.01,151.87,534.16024178]
[1746102952669,1.20886607,152.0,151.91,6.5816]
[1746102952867,1.20886607,152.01,151.92,24.34]
[1746102953067,1.20886607,152.0,151.92,24.34]
[1746102953366,1.20886607,151.99,151.92,30.9213]
[1746102953564,1.20886607,152.01,151.92,30.9213]
[1746102953770,1.20886607,152.0,151.92,30.9213]
[1746102954072,1.20886607,151.99,151.92,30.9213]
[1746102954267,1.20886607,152.01,151.92,30.9213]
[1746102954474,6.58,151.96,151.92,30.9213]
[1746102954867,2.0014,152.02,151.92,30.9213]
[1746102955072,6.58,151.96,151.93,6.5808]
[1746102955373,2.0014,152.02,151.92,24.34]
[1746102955578,6.5792,151.97,151.92,24.34]
[1746102955874,2.0014,152.02,151.92,24.34]
[1746102956074,1.20901962,152.01,151.92,24.34]
[1746102956275,1.20901962,152.0,151.92,24.34]
[1746102956571,1.20890254,151.99,151.92,24.34]
[1746102956775,6.5791,151.98,151.92,24.34]
[1746102957176,6.5791,151.98,151.94,6.5803]
[1746102957565,6.5791,151.98,151.92,24.34]
[1746102958269,6.5793,151.97,151.92,24.34]
[1746102958674,6.5793,151.97,151.94,6.5803]
[1746102959077,6.5789,151.98,151.94,6.5803]
[1746102959271,6.5789,151.98,151.95,6.58]
[1746102959474,2.0014,152.02,151.96,24.34]
[1746102959773,1.20880475,152.01,151.97,24.34]
[1746102959965,1.20880475,152.0,151.97,24.34]
[1746102960169,6.578,152.0,151.97,24.34]
[1746102960367,2.0177,152.05,151.98,6.5788]
[1746102960567,1.20872169,152.04,151.98,6.5788]
[1746102960771,1.20872169,152.03,151.97,24.34]
[1746102960977,1.20872169,152.02,151.97,24.34]
[1746102961178,6.5783,152.0,151.97,24.34]
[1746102961479,2.0177,152.05,151.97,24.34]
[1746102961680,1.20878565,152.04,151.97,24.34]
[1746102961879,1.20878565,152.03,151.97,24.34]
[1746102962081,1.20878565,152.02,151.97,24.34]
[1746102962379,1.20878565,152.01,151.97,24.34]
[1746102962572,6.5788,151.98,151.97,24.34]
[1746102963082,6.5801,151.95,151.94,24.34]
[1746102963273,24.34,152.03,151.94,24.34]
[1746102963476,1.20899102,152.02,151.94,24.34]
[1746102963682,1.20899102,152.01,151.94,24.34]
[1746102963980,1.20899102,152.0,151.94,24.34]
[1746102964180,6.58,151.96,151.94,24.34]
[1746102968877,6.5801,151.95,151.94,24.34]
[1746102973778,6.5798,151.96,151.94,24.34]
[1746102973977,24.34,152.03,151.94,24.34]
[1746102974171,1.20914513,152.02,151.94,24.34]
[1746102974382,3.25684513,152.01,151.94,24.34]
[1746102974577,1.20914513,152.0,151.94,24.34]
[1746102974887,1.20914513,151.99,151.94,24.34]
[1746102975082,6.5801,151.95,151.94,24.34]
[1746102976283,26.2478,151.99,151.87,521.68]
[1746102976482,1.20918177,151.98,151.9,24.34]
[1746102976989,6.5818,151.91,151.9,24.34]
[1746102978084,6.5816,151.92,151.9,24.34]
[1746102978284,26.2478,151.99,151.9,24.34]
[1746102978490,1.20933598,151.98,151.9,24.34]
[1746102978793,1.20933598,151.97,151.9,24.34]
[1746102978979,1.20933598,151.96,151.9,24.34]
[1746102979180,1.20933598,151.95,151.9,30.9222]
[1746102979386,6.5813,151.93,151.9,30.9222]
[1746102979887,6.5813,151.93,151.91,6.5816]
[1746102980082,26.2478,151.99,151.9,24.34]
[1746102980282,1.2092032,151.98,151.9,24.34]
[1746102980488,6.5795,151.97,151.94,6.5802]
[1746102981198,6.5798,151.96,151.94,6.5802]
[1746102981405,26.2478,151.99,151.93,6.5808]
[1746102981601,1.2091543,151.98,151.9,24.34]
[1746102981897,26.2478,151.99,151.91,6.5817]
[1746102982199,1.20917625,151.98,151.91,6.5817]
[1746102983195,6.5811,151.93,151.9,30.922]
[1746102983397,26.2478,151.99,151.9,30.922]
[1746102983597,1.20924215,151.98,151.9,30.922]
[1746102984003,6.5814,151.92,151.9,30.922]
[1746102984502,26.2478,151.99,151.91,6.5818]
[1746102984706,6.5809,151.94,151.91,6.5818]
[1746102985398,26.2478,151.99,151.87,545.72]
[1746102985699,1.20938195,151.98,151.87,545.72]
[1746102986004,6.5816,151.92,151.89,6.5825]
[1746102986396,24.04,151.95,151.87,545.72]
[1746102986597,6.5808,151.94,151.91,6.5815]
[1746102987304,6.581,151.93,151.91,6.5815]
[1746102987807,24.04,151.95,151.91,6.5815]
[1746102988002,24.04,151.95,151.9,6.5821]
[1746102988806,6.5813,151.93,151.9,6.5821]
[1746102989001,24.04,151.95,151.89,6.5825]
[1746102989407,6.5818,151.92,151.89,6.5825]
[1746102989707,24.04,151.95,151.89,6.5825]
[1746102989908,24.04,151.95,151.9,6.5822]
[1746102990105,6.5811,151.93,151.9,6.5822]
[1746102990408,24.04,151.95,151.9,6.5822]
[1746102990704,6.5812,151.93,151.9,6.5822]
[1746102991106,24.04,151.95,151.9,6.5822]
[1746102991305,24.04,151.95,151.87,24.04]
[1746102991503,24.04,151.95,151.85,8.60336]
[1746102991704,6.5829,151.89,151.86,6.5838]
[1746102992005,6.5829,151.89,151.85,8.60336]
[1746102992405,6.5832,151.88,151.86,6.5836]
[1746102993107,6.5828,151.89,151.86,6.5836]
[1746102993502,2.1042,151.93,151.86,6.5836]
[1746102993703,6.5824,151.9,151.86,6.5836]
[1746102994011,6.5824,151.9,151.87,6.5832]
[1746102995001,6.5827,151.89,151.87,6.5832]
[1746102995208,6.5827,151.89,151.86,6.5838]
[1746102995409,24.06,151.91,151.85,8.60336]
[1746102995703,6.5834,151.88,151.85,8.60336]
[1746102995906,6.5834,151.88,151.85,15.18746]
[1746102996503,6.5834,151.88,151.86,6.5839]
[1746102998712,24.06,151.91,151.85,8.60336]
[1746102999108,6.5821,151.91,151.85,8.60336]
[1746102999315,6.5821,151.91,151.88,6.5829]
[1746102999514,24.06,151.92,151.88,6.5829]
[1746102999716,8.6853,151.93,151.85,32.66336]
[1746103000019,2.1042,151.93,151.91,6.5816]
[1746103000620,4.1126,151.99,151.86,12.48024178]
[1746103000821,24.06,151.98,151.87,24.06]
[1746103001124,6.5801,151.95,151.87,24.06]
[1746103001622,30.639,151.98,151.89,12.48024178]
[1746103002119,6.579,151.98,151.89,12.48024178]
[1746103002423,4.0996,151.99,151.89,12.48024178]
[1746103002721,24.06,152.01,151.9,13.1643]
[1746103002919,24.06,152.01,151.91,24.06]
[1746103003118,30.6378,152.01,151.98,6.5784]
[1746103003317,30.6378,152.01,151.95,24.06]
[1746103003318,24.06,152.01,151.95,24.06]
[1746103003618,12.607,152.03,151.99,6.5781]
[1746103003817,6.0301,152.03,151.99,6.5781]
[1746103004325,6.0301,152.03,152.0,6.5778]
[1746103004623,6.0301,152.03,151.95,24.06]
[1746103004825,12.6068,152.03,152.0,6.5775]
[1746103005124,4.0834,152.03,151.95,24.06]
[1746103007727,6.5761,152.05,151.95,36.54024178]
[1746103007914,24.04,152.07,151.95,36.54024178]
[1746103008121,24.04,152.07,152.04,6.576]
[1746103008622,6.575,152.07,152.04,6.576]
[1746103010028,6.575,152.07,152.0,24.04]
[1746103010029,6.5755,152.06,152.03,6.5765]
[1746103011026,6.5752,152.07,152.04,6.576]
[1746103011229,23.92,152.1,152.0,24.04]
[1746103012031,6.5741,152.09,152.07,6.5748]
[1746103012227,23.92,152.1,152.07,6.5748]
[1746103013129,30.4937,152.1,152.07,6.5748]
[1746103013830,1.14464271,152.21,152.08,23.92]
[1746103014129,4.0195,152.19,152.08,23.92]
[1746103014331,6.5711,152.16,152.08,23.92]
[1746103014526,4.0195,152.19,152.08,23.92]
[1746103014729,1.20783849,152.18,152.1,6.5734]
[1746103014930,1.20783849,152.18,152.08,23.92]
[1746103015224,1.20783849,152.18,152.1,6.5734]
[1746103015539,1.20783849,152.18,152.08,23.92]
[1746103015834,1.2078612,152.17,152.08,30.4941]